bitfinex/quotes_BTCUSD_20240827
["timestamp","ask_amount","ask_price","bid_price","bid_amount"]
[1724794780509,0.47676,61067.0,61056.0,0.0008]
[1724794780721,0.47676,61067.0,61053.0,0.00818]
[1724794780722,0.47676,61067.0,61053.0,0.17197]
[1724794780945,0.47676,61067.0,61056.0,0.163783]
[1724794781210,0.47676,61067.0,61055.0,0.163784]
[1724794781418,0.47676,61067.0,61053.0,0.00818]
[1724794781643,0.3816,61056.0,61053.0,0.00818]
[1724794781863,0.3816,61056.0,61053.0,0.03432071]
[1724794781864,0.47676,61055.0,61053.0,0.03432071]
[1724794782094,0.005,61054.0,61053.0,0.03432071]
[1724794782577,0.48176,61054.0,61053.0,0.03432071]
[1724794782828,0.47676,61054.0,61053.0,0.03432071]
[1724794783322,0.34639593,61054.0,61053.0,0.85328071]
[1724794783778,0.34639593,61054.0,61053.0,1.18086471]
[1724794784240,0.02567774,61077.0,61053.0,0.38490471]
[1724794784481,0.47989634,61074.0,61054.0,0.123]
[1724794784715,0.49128,61076.0,61055.0,0.00327464]
[1724794784967,0.49128,61076.0,61054.0,0.123]
[1724794784968,0.49128,61073.0,61072.0,0.163741]
[1724794785197,0.49128,61073.0,61072.0,0.841705]
[1724794785441,0.49128,61073.0,61072.0,0.941705]
[1724794785680,0.49128,61073.0,61072.0,1.269187]
[1724794785904,0.49128,61073.0,61072.0,1.29532771]
[1724794786175,0.47989634,61096.0,61072.0,0.14914071]
[1724794786400,0.0833367,61095.0,61094.0,0.491046]
[1724794786611,0.47989634,61119.0,61117.0,0.163618]
[1724794786612,0.37989634,61119.0,61117.0,0.163618]
[1724794786916,0.005,61134.0,61118.0,0.099987]
[1724794787129,0.00907501,61139.0,61118.0,0.099987]
[1724794787130,0.49083,61122.0,61120.0,0.163611]
[1724794787367,0.49083,61122.0,61118.0,0.099987]
[1724794787818,0.49083,61122.0,61118.0,0.12470185]
[1724794788047,0.49083,61122.0,61118.0,0.02471485]
[1724794788269,0.005,61120.0,61118.0,0.02471485]
[1724794788503,0.49083,61119.0,61118.0,0.02471485]
[1724794788983,0.68713,61119.0,61118.0,0.02471485]
[1724794789852,0.52147938,61119.0,61118.0,0.02475485]
[1724794791467,0.49083,61119.0,61118.0,0.02475485]
[1724794792337,0.86843,61119.0,61118.0,0.02475485]
[1724794792547,1.06523,61119.0,61118.0,0.02475485]
[1724794792791,1.06523,61119.0,61090.0,0.64358734]
[1724794793031,0.005,61101.0,61090.0,0.60347056]
[1724794793243,0.49083,61100.0,61090.0,0.60347056]
[1724794793492,0.49083,61100.0,61090.0,0.12357422]
[1724794793704,0.02565521,61099.0,61094.0,0.16368]
[1724794793939,0.49083,61100.0,61090.0,0.12357422]
[1724794794909,0.49083,61100.0,61090.0,0.01765346]
[1724794795346,0.49583,61100.0,61090.0,0.01765346]
[1724794795565,0.02565682,61098.0,61090.0,0.01765346]
[1724794795995,0.005,61096.0,61090.0,0.01765346]
[1724794796233,0.49083,61095.0,61090.0,0.01765346]
[1724794796952,0.49083,61095.0,61094.0,0.81841]
[1724794797208,0.49083,61095.0,61094.0,0.96651]
[1724794797452,0.49083,61095.0,61094.0,1.293874]
[1724794797906,0.49083,61095.0,61094.0,1.31152746]
[1724794798373,0.46573,61095.0,61094.0,1.31152746]
[1724794799089,0.46573,61095.0,61094.0,1.63889146]
[1724794799322,0.0016,61122.0,61094.0,1.63889146]
[1724794799323,0.0016,61122.0,61121.0,0.490828]
[1724794799569,0.0016,61122.0,61121.0,0.513828]
[1724794799804,0.49243,61122.0,61121.0,1.268266]
[1724794800034,0.49243,61122.0,61121.0,1.28591946]
[1724794800752,0.20678212,61122.0,61121.0,0.28126246]
[1724794800994,0.00012,61138.0,61137.0,1.144969]
[1724794801209,0.49082,61138.0,61137.0,1.604833]
[1724794801413,0.261829,61138.0,61137.0,2.41906645]
[1724794801636,0.012657,61156.0,61137.0,2.41906645]
[1724794801637,0.012657,61156.0,61155.0,1.471666]
[1724794801858,0.503207,61156.0,61155.0,1.244629]
[1724794802113,0.503207,61156.0,61109.0,0.41]
[1724794802114,0.005,61138.0,61109.0,0.41]
[1724794802407,0.005,61124.0,61122.0,0.1085734]
[1724794802646,0.90735,61123.0,61122.0,0.1085734]
[1724794802893,0.90235,61123.0,61122.0,0.1085734]
[1724794803131,0.49055,61123.0,61122.0,0.1085734]
[1724794803581,0.49055,61123.0,61122.0,0.5993944]
[1724794803828,0.49055,61123.0,61122.0,0.9266084]
[1724794804037,0.49055,61123.0,61122.0,1.26303316]
[1724794804038,0.491671,61123.0,61122.0,1.26303316]
[1724794804254,0.491671,61123.0,61122.0,0.93581916]
[1724794804672,0.491671,61123.0,61122.0,0.95881916]
[1724794804914,0.24159737,61123.0,61122.0,1.28603316]
[1724794805127,0.09448976,61123.0,61122.0,1.34197306]
[1724794805334,0.47989634,61146.0,61122.0,1.34197306]
[1724794805335,0.47989634,61146.0,61145.0,0.163545]
[1724794805558,0.97052634,61146.0,61145.0,0.263545]
[1724794805778,0.49063,61146.0,61145.0,1.479427]
[1724794806229,0.49063,61146.0,61145.0,1.839248]
[1724794806715,0.49063,61146.0,61145.0,0.817727]
[1724794806934,0.49063,61146.0,61145.0,0.490636]
[1724794807158,0.49063,61146.0,61145.0,0.85585854]
[1724794807366,0.49063,61146.0,61145.0,0.52876754]
[1724794807607,0.49063,61146.0,61145.0,0.01513154]
[1724794808067,0.4915309,61146.0,61145.0,0.01513154]
[1724794808530,0.4965309,61146.0,61145.0,0.01513154]
[1724794809013,0.8774309,61146.0,61145.0,0.01513154]
[1724794809220,0.4915309,61146.0,61145.0,0.01513154]
[1724794810166,0.8900309,61146.0,61145.0,0.01513154]
[1724794810375,1.0907309,61146.0,61145.0,0.01513154]
[1724794810587,1.0907309,61146.0,61141.0,0.01513154]
[1724794810588,0.005,61128.0,61105.0,0.87279634]
[1724794810803,0.005,61125.0,61124.0,0.55555405]
[1724794811021,0.69133,61125.0,61124.0,0.07565771]
[1724794812171,0.71698127,61125.0,61124.0,0.07565771]
[1724794812824,0.005,61119.0,61105.0,0.47989634]
[1724794813052,0.49563,61119.0,61105.0,0.47989634]
[1724794813269,0.49563,61119.0,61106.0,0.47989634]
[1724794813909,0.49563,61119.0,61106.0,0.64354534]
[1724794814346,0.49563,61119.0,61101.0,0.327322]
[1724794814570,0.49563,61119.0,61110.0,0.327278]
[1724794814571,0.49063,61119.0,61110.0,0.327278]
[1724794814792,0.49063,61119.0,61118.0,0.164436]
[1724794815023,0.49063,61119.0,61118.0,1.146141]
[1724794815252,0.49063,61119.0,61118.0,1.169141]
[1724794815466,0.49063,61119.0,61118.0,1.269141]
[1724794815677,0.49063,61119.0,61118.0,1.596376]
[1724794815898,0.49063,61119.0,61118.0,1.923611]
[1724794816121,0.30293,61119.0,61118.0,2.311111]
[1724794816550,0.0009009,61146.0,61118.0,0.838554]
[1724794816765,0.0009009,61146.0,61145.0,0.163545]
[1724794816988,0.0009009,61146.0,61145.0,0.263545]
[1724794817215,0.4915309,61146.0,61145.0,0.1]
[1724794818140,0.4915309,61146.0,61144.0,0.263548]
[1724794818364,0.4915309,61146.0,61144.0,0.1]
[1724794818582,0.46081021,61146.0,61145.0,1.160627]
[1724794818803,0.46081021,61146.0,61145.0,2.02362055]
[1724794819012,0.39539221,61146.0,61145.0,2.32771155]
[1724794819234,0.39539221,61146.0,61145.0,1.974818]
[1724794820748,0.39539221,61146.0,61145.0,1.982009]
[1724794821201,0.14884721,61146.0,61145.0,2.223507]
[1724794821437,0.0009009,61155.0,61154.0,1.471693]
[1724794821695,0.4914609,61155.0,61154.0,1.571693]
[1724794821940,0.0748609,61155.0,61154.0,1.571693]
[1724794822425,0.0748609,61155.0,61154.0,2.11800145]
[1724794822660,0.0748609,61155.0,61154.0,1.79095845]
[1724794822865,0.0748609,61155.0,61154.0,2.11800145]
[1724794823096,0.0748609,61155.0,61154.0,1.630993]
[1724794823295,0.0748609,61155.0,61154.0,1.653993]
[1724794825079,0.0159609,61155.0,61154.0,1.594693]
[1724794825631,0.0159609,61155.0,61154.0,1.26765]
[1724794825966,0.0159609,61155.0,61154.0,1.14465]
[1724794826199,0.0159609,61155.0,61154.0,0.817607]
[1724794827498,0.0159609,61155.0,61154.0,0.490564]
[1724794827740,0.0159609,61155.0,61153.0,0.163522]
[1724794827957,0.0159609,61155.0,61145.0,0.2]
[1724794827958,0.0159609,61155.0,61154.0,0.163521]
[1724794828425,0.0159609,61155.0,61154.0,1.14465]
[1724794828675,0.0159609,61155.0,61154.0,1.52374555]
[1724794828919,0.0159609,61155.0,61154.0,2.26249988]
[1724794829149,0.0009053,61166.0,61156.0,1.144612]
[1724794829150,9e-07,61157.0,61156.0,1.144612]
[1724794829425,9e-07,61157.0,61156.0,2.05862945]
[1724794829654,0.3270259,61157.0,61156.0,2.08162945]
[1724794829887,0.00907501,61173.0,61156.0,2.40866145]
[1724794830111,0.1805,61215.0,61184.0,1.470969]
[1724794830112,0.48889434,61185.0,61184.0,1.470969]
[1724794830351,0.3969,61205.0,61193.0,1.143919]
[1724794830584,0.3969,61205.0,61193.0,1.26685]
[1724794830818,0.4911553,61194.0,61193.0,1.26685]
[1724794831042,0.4911553,61194.0,61193.0,0.940016]
[1724794831262,0.4911553,61194.0,61193.0,1.26685]
[1724794831473,0.4911553,61194.0,61193.0,1.593684]
[1724794832824,0.008987,61217.0,61207.0,1.14366]
[1724794833041,0.48011853,61253.0,61208.0,0.1718]
[1724794833315,0.04699914,61263.0,61208.0,0.1718]
[1724794833316,0.14099743,61287.0,61254.0,2.71232126]
[1724794833568,0.14099743,61287.0,61209.0,0.08103937]
[1724794833569,0.4509107,61268.0,61255.0,0.5414]
[1724794833787,0.48963,61267.0,61255.0,0.07228338]
[1724794834001,0.48963,61267.0,61247.0,0.1]
[1724794834213,0.1956,61266.0,61247.0,0.1]
[1724794834426,0.48963,61265.0,61219.0,0.4134]
[1724794834654,0.068523,61264.0,61237.0,0.47989634]
[1724794834910,0.24035801,61239.0,61185.0,0.009075]
[1724794835162,0.1933,61225.0,61185.0,0.009075]
[1724794835385,0.326623,61233.0,61185.0,0.009075]
[1724794835386,0.35,61205.0,61185.0,0.009075]
[1724794835595,0.163409,61196.0,61185.0,0.009075]
[1724794835805,0.653039,61196.0,61185.0,0.009075]
[1724794836226,0.51524471,61196.0,61185.0,0.009075]
[1724794836440,0.91374471,61196.0,61185.0,0.009075]
[1724794836653,0.88813,61196.0,61185.0,0.009075]
[1724794837386,0.88813,61196.0,61187.0,0.163432]
[1724794837820,0.88813,61196.0,61185.0,0.009075]
[1724794839426,0.48963,61196.0,61195.0,0.382]
[1724794839679,0.48963,61196.0,61195.0,0.43023775]
[1724794839888,0.48963,61196.0,61195.0,0.645412]
[1724794840120,0.48963,61196.0,61195.0,0.645452]
[1724794840589,0.48963,61196.0,61195.0,0.12304]
[1724794841095,0.48963,61196.0,61195.0,4e-05]
[1724794845060,0.48963,61196.0,61195.0,0.163452]
[1724794845285,0.48963,61196.0,61195.0,0.326864]
[1724794845503,0.48963,61196.0,61195.0,0.9401]
[1724794845718,0.48963,61196.0,61195.0,1.333524]
[1724794845920,0.48963,61196.0,61195.0,1.735424]
[1724794846383,0.48963,61196.0,61195.0,2.094978]
[1724794846593,0.48963,61196.0,61195.0,2.062248]
[1724794847038,0.48963,61196.0,61195.0,2.389072]
[1724794847251,0.00089981,61221.0,61195.0,2.389072]
[1724794847252,0.00089981,61221.0,61220.0,0.490035]
[1724794847481,0.00089981,61221.0,61220.0,0.590035]
[1724794847712,0.49092981,61221.0,61220.0,0.590035]
[1724794847961,0.29092981,61221.0,61220.0,0.590035]
[1724794848178,0.29092981,61221.0,61220.0,0.263345]
[1724794848662,0.29092981,61221.0,61220.0,0.590035]
[1724794848881,0.29092981,61221.0,61220.0,0.263345]
[1724794849115,0.29092981,61221.0,61220.0,0.590035]
[1724794849355,0.29092981,61221.0,61220.0,0.916725]
[1724794849575,0.66882981,61221.0,61220.0,0.1]
[1724794849835,0.66882981,61221.0,61198.0,0.005]
[1724794850023,0.66882981,61221.0,61220.0,4e-05]
[1724794850527,0.66882981,61221.0,61220.0,0.163385]
[1724794850725,0.29092981,61221.0,61220.0,0.590075]
[1724794851181,0.29092981,61221.0,61220.0,0.613075]
[1724794851814,0.28092981,61221.0,61220.0,0.590075]
[1724794852018,0.28092981,61221.0,61220.0,0.916765]
[1724794852486,0.47989634,61259.0,61251.0,0.16326]
[1724794852729,0.47989634,61259.0,61238.0,0.005]
[1724794852949,0.48976,61258.0,61240.0,0.326583]
[1724794853170,0.48976,61258.0,61241.0,0.1]
[1724794853390,0.3937,61257.0,61247.0,0.163271]
[1724794853607,0.3937,61257.0,61248.0,0.1]
[1724794853608,0.48976,61256.0,61248.0,0.1]
[1724794853838,0.1895,61255.0,61242.0,0.023]
[1724794854083,0.48976,61254.0,61244.0,0.16328]
[1724794854296,0.48976,61254.0,61245.0,0.1]
[1724794854539,0.48976,61254.0,61241.0,0.1]
[1724794854783,0.4147,61253.0,61217.0,0.54759634]
[1724794854996,0.48976,61252.0,61217.0,0.54259634]
[1724794855432,0.3796,61251.0,61221.0,0.326684]
[1724794855666,0.3796,61249.0,61218.0,0.47989634]
[1724794855893,0.67076,61250.0,61218.0,0.47989634]
[1724794855894,0.3796,61244.0,61218.0,0.47989634]
[1724794856200,0.48976,61243.0,61221.0,0.326682]
[1724794856390,0.48976,61243.0,61225.0,0.163331]
[1724794856607,0.48976,61243.0,61226.0,0.163328]
[1724794857056,0.48976,61243.0,61227.0,0.163324]
[1724794857265,0.48976,61243.0,61226.0,0.163329]
[1724794857690,0.48976,61243.0,61227.0,0.1]
[1724794857917,0.48976,61243.0,61227.0,0.065488]
[1724794858127,0.49065981,61243.0,61227.0,0.065488]
[1724794858334,0.49065981,61243.0,61227.0,0.328813]
[1724794858748,0.49065981,61243.0,61227.0,0.165488]
[1724794858967,0.49065981,61243.0,61227.0,0.328814]
[1724794859164,0.49065981,61243.0,61227.0,0.165488]
[1724794859586,0.49065981,61243.0,61227.0,0.065488]
[1724794859798,0.02560026,61240.0,61227.0,0.065488]
[1724794860050,0.48976,61239.0,61227.0,0.065488]
[1724794860871,0.1803,61237.0,61227.0,0.065488]
[1724794861078,0.1803,61237.0,61224.0,0.1]
[1724794861079,0.88273816,61236.0,61224.0,0.1]
[1724794861298,0.86996,61236.0,61224.0,0.1]
[1724794861720,0.86996,61236.0,61224.0,0.165496]
[1724794861954,0.86996,61236.0,61227.0,4e-05]
[1724794862148,0.3816,61235.0,61227.0,4e-05]
[1724794862360,0.48976,61234.0,61227.0,4e-05]
[1724794862598,0.48976,61234.0,61233.0,0.47989634]
[1724794862803,0.48976,61234.0,61233.0,1.119152]
[1724794863245,0.48976,61234.0,61233.0,1.772394]
[1724794863682,0.48976,61234.0,61233.0,1.810124]
[1724794863981,0.48976,61234.0,61233.0,1.84900094]
[1724794864215,0.00089981,61243.0,61242.0,1.148005]
[1724794864446,0.02559497,61265.0,61264.0,0.326455]
[1724794864662,0.51527497,61265.0,61264.0,0.816137]
[1724794864871,0.51527497,61265.0,61264.0,0.916137]
[1724794865100,0.51527497,61265.0,61264.0,1.242592]
[1724794865302,0.48968,61265.0,61264.0,1.265592]
[1724794865524,0.48968,61265.0,61264.0,0.939137]
[1724794865937,0.48968,61265.0,61264.0,1.265592]
[1724794866158,0.48968,61265.0,61264.0,0.263227]
[1724794866379,0.48968,61265.0,61264.0,0.1]
[1724794866564,0.4021,61264.0,61259.0,0.1]
[1724794866776,0.48968,61263.0,61253.0,0.326512]
[1724794866969,0.48968,61263.0,61249.0,0.163267]
[1724794867202,0.48968,61263.0,61246.0,0.07562519]
[1724794867356,0.48968,61263.0,61250.0,0.163263]
[1724794867558,0.48968,61263.0,61246.0,0.07562519]
[1724794867559,0.48968,61263.0,61247.0,0.326541]
[1724794867759,0.48968,61263.0,61253.0,0.163256]
[1724794867976,0.48968,61263.0,61246.0,0.07562519]
[1724794867977,0.48968,61263.0,61262.0,0.489699]
[1724794868174,0.48968,61263.0,61262.0,0.816165]
[1724794868374,0.48968,61263.0,61262.0,1.142631]
[1724794868528,0.48968,61263.0,61262.0,1.242631]
[1724794868726,0.48968,61263.0,61262.0,1.265631]
[1724794869358,0.48968,61263.0,61262.0,0.939165]
[1724794869795,0.48968,61263.0,61262.0,0.1]
[1724794870001,0.48968,61263.0,61257.0,0.1]
[1724794870228,0.48968,61263.0,61246.0,0.07562519]
[1724794870229,0.1957,61262.0,61246.0,0.07562519]
[1724794870445,0.3867,61261.0,61246.0,0.07562519]
[1724794871086,0.01278288,61260.0,61246.0,0.07562519]
[1724794871317,0.1957,61262.0,61246.0,0.07562519]
[1724794871318,0.40558257,61259.0,61246.0,0.07562519]
[1724794871557,0.02559109,61257.0,61246.0,0.07562519]
[1724794871967,0.44441351,61256.0,61246.0,0.07562519]
[1724794872169,0.44441351,61256.0,61247.0,0.326546]
[1724794872379,0.44441351,61256.0,61253.0,0.163255]
[1724794872592,0.44441351,61256.0,61246.0,0.07562519]
[1724794873012,0.44441351,61256.0,61247.0,0.326546]
[1724794873244,0.44441351,61256.0,61248.0,0.326538]
[1724794873486,0.44441351,61256.0,61255.0,0.163251]
[1724794873700,0.44441351,61256.0,61255.0,0.263251]
[1724794874101,0.44441351,61256.0,61255.0,0.589754]
[1724794874522,0.44441351,61256.0,61255.0,0.916257]
[1724794875074,0.44441351,61256.0,61255.0,1.26576]
[1724794875745,0.44441351,61256.0,61255.0,1.592263]
[1724794875890,0.44441351,61256.0,61255.0,1.26576]
[1724794876310,0.44441351,61256.0,61255.0,1.592263]
[1724794876526,0.44441351,61256.0,61255.0,1.26576]
[1724794876733,0.44441351,61256.0,61255.0,1.592263]
[1724794878483,0.44441351,61256.0,61255.0,1.597263]
[1724794878901,0.37211351,61256.0,61255.0,1.597263]
[1724794879205,0.47989634,61295.0,61282.0,0.48954]
[1724794879362,0.47989634,61295.0,61282.0,1.24226]
[1724794879571,0.008987,61296.0,61282.0,1.24226]
[1724794879572,0.498527,61283.0,61282.0,1.24226]
[1724794879794,0.48954,61283.0,61282.0,1.56862]
[1724794880498,0.48954,61283.0,61282.0,1.59162]
[1724794881822,0.48954,61283.0,61282.0,1.59166]
[1724794882281,0.48954,61283.0,61282.0,1.92302]
[1724794882692,0.48954,61283.0,61282.0,1.59666]
[1724794882897,0.48954,61283.0,61282.0,1.59166]
[1724794883106,0.490442,61283.0,61282.0,1.59166]
[1724794883941,0.490442,61283.0,61282.0,1.2423]
[1724794885863,0.490442,61283.0,61282.0,0.83894]
[1724794886097,0.490442,61283.0,61282.0,0.51258]
[1724794886333,0.490442,61283.0,61282.0,0.83894]
[1724794886816,0.490442,61283.0,61282.0,0.16322]
[1724794887264,0.490442,61283.0,61282.0,0.48958]
[1724794887482,0.490442,61283.0,61282.0,0.26322]
[1724794887697,0.490442,61283.0,61282.0,0.10004]
[1724794887915,0.490442,61283.0,61282.0,4e-05]
[1724794888167,0.901942,61283.0,61282.0,4e-05]
[1724794888662,1.101042,61283.0,61282.0,4e-05]
[1724794888898,0.4115,61282.0,61265.0,0.47989634]
[1724794889114,0.48954,61281.0,61266.0,0.47989634]
[1724794889346,0.4115,61280.0,61250.0,0.41340655]
[1724794889559,0.90104,61279.0,61250.0,0.41340655]
[1724794889769,0.90104,61279.0,61261.0,0.326469]
[1724794889971,0.90104,61279.0,61250.0,0.41340655]
[1724794890186,0.90104,61279.0,61262.0,0.326465]
[1724794890396,0.90104,61279.0,61250.0,0.41340655]
[1724794890676,0.90104,61279.0,61266.0,0.163221]
[1724794890879,0.90104,61279.0,61264.0,0.326452]
[1724794891096,0.90104,61279.0,61263.0,0.163229]
[1724794891316,0.90104,61279.0,61264.0,0.1]
[1724794891555,0.90104,61279.0,61250.0,0.41340655]
[1724794891556,0.4071,61278.0,61261.0,0.326471]
[1724794891776,0.48954,61277.0,61262.0,0.1]
[1724794891990,0.48954,61277.0,61263.0,0.163228]
[1724794892221,0.48954,61277.0,61264.0,0.1]
[1724794892628,0.48954,61277.0,61264.0,0.589679]
[1724794892864,0.48954,61277.0,61265.0,0.163225]
[1724794893070,0.02558455,61274.0,61266.0,0.1]
[1724794893273,0.48954,61273.0,61265.0,0.163223]
[1724794893692,0.48954,61273.0,61263.0,0.163229]
[1724794894114,0.48954,61273.0,61264.0,0.163226]
[1724794894332,0.48954,61273.0,61262.0,0.326464]
[1724794894333,0.48954,61273.0,61265.0,0.163225]
[1724794894823,0.48954,61273.0,61263.0,0.32646]
[1724794894824,0.48954,61273.0,61266.0,0.16322]
[1724794895250,0.48954,61273.0,61266.0,0.163221]
[1724794895459,0.48954,61273.0,61267.0,0.1]
[1724794895680,0.48954,61273.0,61267.0,0.163219]
[1724794895906,0.48954,61273.0,61268.0,0.1]
[1724794896338,0.3802,61272.0,61268.0,0.1]
[1724794896541,0.48954,61271.0,61269.0,0.326429]
[1724794896784,0.48954,61271.0,61270.0,0.1]
[1724794897007,0.48954,61271.0,61268.0,0.1]
[1724794897662,0.48954,61271.0,61268.0,0.263216]
[1724794897873,0.48954,61271.0,61268.0,0.1]
[1724794898080,0.48954,61271.0,61266.0,0.57989634]
[1724794898297,0.87634,61271.0,61270.0,0.81606]
[1724794898509,0.87634,61271.0,61270.0,1.242484]
[1724794899621,0.87634,61271.0,61270.0,1.142484]
[1724794899848,0.87634,61271.0,61270.0,1.242484]
[1724794900718,0.48954,61271.0,61270.0,1.242484]
[1724794900960,0.358972,61271.0,61270.0,2.71396255]
[1724794901202,0.000902,61279.0,61278.0,1.142333]
[1724794901438,0.490472,61279.0,61278.0,1.918095]
[1724794902778,0.490472,61279.0,61278.0,1.591714]
[1724794902978,0.490472,61279.0,61278.0,1.491714]
[1724794903186,0.490472,61279.0,61278.0,1.591714]
[1724794903817,0.46678185,61279.0,61278.0,1.6029818]
[1724794904017,0.02557517,61298.0,61292.0,1.142071]
[1724794904276,0.3966,61310.0,61292.0,1.18901855]
[1724794904277,6.4e-05,61293.0,61292.0,1.18901855]
[1724794904488,9.7e-05,61293.0,61292.0,0.86271255]
[1724794904704,9.7e-05,61293.0,61292.0,2.00478355]
[1724794905983,9.7e-05,61293.0,61292.0,2.00978355]
[1724794906606,9.7e-05,61293.0,61292.0,2.0781313]
[1724794907463,9.7e-05,61293.0,61292.0,2.4044373]
[1724794908076,9.7e-05,61293.0,61292.0,2.0781313]
[1724794908283,6.4e-05,61305.0,61304.0,1.141847]
[1724794908509,6.4e-05,61305.0,61304.0,1.67825355]
[1724794908712,6.4e-05,61305.0,61304.0,2.00449555]
[1724794909840,0.008987,61318.0,61304.0,2.00449555]
[1724794909841,0.008987,61318.0,61317.0,0.489259]
[1724794910081,0.498247,61318.0,61317.0,0.938432]
[1724794910919,0.4142,61333.0,61324.0,0.326136]
[1724794911126,0.4142,61333.0,61332.0,0.163047]
[1724794911338,0.90334,61333.0,61332.0,0.263047]
[1724794911960,0.90334,61333.0,61332.0,0.589141]
[1724794912669,0.90334,61333.0,61332.0,0.263047]
[1724794913098,0.90334,61333.0,61332.0,0.1]
[1724794913304,0.48914,61333.0,61332.0,0.589141]
[1724794913525,0.48914,61333.0,61332.0,0.589181]
[1724794913777,0.48914,61333.0,61332.0,0.915275]
[1724794914007,0.48914,61333.0,61332.0,0.938275]
[1724794914215,0.48914,61333.0,61332.0,1.264369]
[1724794914426,0.47414,61333.0,61332.0,1.63330547]
[1724794914899,0.46014,61333.0,61332.0,1.79827092]
[1724794915105,0.46014,61333.0,61332.0,1.80959025]
[1724794915318,0.46014,61333.0,61332.0,1.6496248]
[1724794915778,0.44514,61333.0,61332.0,1.6496248]
[1724794916015,0.42841177,61333.0,61332.0,1.6496248]
[1724794916680,0.19721177,61333.0,61332.0,1.6496248]
[1724794917095,0.00902001,61355.0,61343.0,0.815087]
[1724794917308,0.00902001,61355.0,61352.0,0.162991]
[1724794917544,0.00902001,61355.0,61353.0,0.07431378]
[1724794918187,0.48897,61354.0,61353.0,0.07431378]
[1724794918604,0.48844881,61354.0,61353.0,0.07431378]
[1724794919938,0.48844881,61354.0,61353.0,0.05506378]
[1724794920393,0.51399824,61354.0,61353.0,0.05506378]
[1724794920667,0.51399824,61354.0,61352.0,0.1]
[1724794920870,0.3796,61353.0,61352.0,0.15506378]
[1724794921122,0.86804881,61353.0,61352.0,0.15506378]
[1724794921333,0.86804881,61353.0,61352.0,0.1]
[1724794922173,0.86804881,61353.0,61349.0,0.01130389]
[1724794922599,0.86804881,61353.0,61343.0,0.1]
[1724794922813,0.86804881,61353.0,61344.0,0.186014]
[1724794923029,0.86804881,61353.0,61345.0,0.263012]
[1724794923245,0.86804881,61353.0,61343.0,0.01134872]
[1724794923246,0.1809,61352.0,61343.0,0.01134872]
[1724794923481,0.1809,61352.0,61332.0,4e-05]
[1724794923482,0.86974881,61351.0,61332.0,4e-05]
[1724794923706,0.3813,61349.0,61335.0,0.01147087]
[1724794923925,0.3813,61347.0,61332.0,4e-05]
[1724794924152,0.162989,61354.0,61332.0,4e-05]
[1724794924153,0.66934881,61346.0,61332.0,4e-05]
[1724794924374,0.3813,61345.0,61332.0,4e-05]
[1724794924597,0.3813,61343.0,61332.0,4e-05]
[1724794924827,0.02555721,61346.0,61332.0,4e-05]
[1724794924828,0.3813,61341.0,61332.0,4e-05]
[1724794925053,0.66934881,61340.0,61332.0,4e-05]
[1724794925323,0.66934881,61340.0,61324.0,0.065383]
[1724794925324,0.3813,61337.0,61324.0,0.065383]
[1724794925542,0.71847779,61351.0,61297.0,0.39248279]
[1724794925543,0.3813,61334.0,61297.0,0.39248279]
[1724794925779,0.02556124,61339.0,61316.0,0.065391]
[1724794925780,0.3813,61330.0,61316.0,0.065391]
[1724794925993,0.3813,61326.0,61297.0,0.39248279]
[1724794926225,0.3813,61326.0,61296.0,0.326282]
[1724794926226,0.3813,61324.0,61296.0,0.163142]
[1724794926459,0.3813,61322.0,61310.0,0.065398]
[1724794926674,0.3813,61322.0,61290.0,0.05119954]
[1724794926675,0.3813,61320.0,61290.0,0.05119954]
[1724794926893,0.3813,61318.0,61297.0,0.065406]
[1724794927336,0.3813,61316.0,61297.0,0.065406]
[1724794927554,0.3813,61314.0,61297.0,0.065406]
[1724794927768,0.48844881,61313.0,61297.0,0.065406]
[1724794928656,0.3813,61312.0,61297.0,0.065406]
[1724794928889,0.48844881,61311.0,61297.0,0.065406]
[1724794931764,0.02556997,61308.0,61297.0,0.065406]
[1724794931987,0.02556997,61308.0,61297.0,0.228545]
[1724794931988,0.48844881,61307.0,61297.0,0.228545]
[1724794932207,0.48844881,61307.0,61298.0,0.1]
[1724794932424,0.48844881,61307.0,61302.0,0.002]
[1724794933786,0.48844881,61307.0,61298.0,0.263136]
[1724794934004,0.48844881,61307.0,61298.0,0.1]
[1724794934228,0.48844881,61307.0,61302.0,0.002]
[1724794935092,0.3938,61306.0,61301.0,0.002]
[1724794935316,0.48844881,61305.0,61303.0,0.065411]
[1724794936167,0.48844881,61305.0,61301.0,0.002]
[1724794936370,0.48844881,61305.0,61302.0,0.065411]
[1724794937072,0.48844881,61305.0,61304.0,0.489363]
[1724794937305,0.48844881,61305.0,61304.0,0.915605]
[1724794938201,0.47844881,61305.0,61304.0,0.915605]
[1724794938853,0.47844881,61305.0,61304.0,0.589363]
[1724794939279,0.47844881,61305.0,61304.0,0.915605]
[1724794941551,0.47844881,61305.0,61304.0,0.917605]
[1724794941980,0.47844881,61305.0,61304.0,0.940605]
[1724794941981,0.46244856,61305.0,61304.0,0.940605]
[1724794942199,0.46244856,61305.0,61304.0,1.264847]
[1724794942631,0.46244856,61305.0,61304.0,1.266847]
[1724794943736,0.46244856,61305.0,61304.0,1.264847]
[1724794943973,0.46244856,61305.0,61304.0,1.266847]
[1724794944217,0.46244856,61305.0,61304.0,1.266887]
[1724794944478,0.40762114,61305.0,61304.0,1.266887]
[1724794945626,0.37818046,61305.0,61304.0,1.264887]
[1724794945852,0.37818046,61305.0,61304.0,1.267706]
[1724794946550,0.37818046,61305.0,61304.0,1.265706]
[1724794946786,0.37818046,61305.0,61304.0,1.267706]
[1724794948387,0.37818046,61305.0,61304.0,1.265706]
[1724794948633,0.37818046,61305.0,61304.0,1.267706]
[1724794951110,0.37818046,61305.0,61304.0,1.265706]
[1724794951364,0.37818046,61305.0,61304.0,1.267706]
[1724794951807,0.37818046,61305.0,61304.0,1.265706]
[1724794952039,0.37818046,61305.0,61304.0,1.267706]